bitfinex/quotes_BTCUSD_20250727
["timestamp","ask_amount","ask_price","bid_price","bid_amount"]
[1753611281407,0.001078,118190.0,118180.0,2.83470763]
[1753611282525,0.001078,118190.0,118180.0,2.80085363]
[1753611283342,0.001078,118190.0,118180.0,2.13107563]
[1753611292368,0.001078,118190.0,118180.0,1.07433963]
[1753611292789,0.001078,118190.0,118180.0,2.70304163]
[1753611294359,0.001078,118190.0,118180.0,2.52628563]
[1753611294562,0.001078,118190.0,118180.0,2.50007963]
[1753611308723,0.001078,118190.0,118180.0,1.07433963]
[1753611308997,0.001078,118190.0,118180.0,2.97372263]
[1753611309166,0.001078,118190.0,118180.0,2.60372263]
[1753611323793,0.001078,118190.0,118180.0,1.07433963]
[1753611324003,0.0115569,118200.0,118190.0,0.56715006]
[1753611324211,0.0115569,118200.0,118190.0,4.00054536]
[1753611324419,0.0115569,118200.0,118190.0,3.92328236]
[1753611324655,0.0115569,118200.0,118190.0,3.74084136]
[1753611324856,0.0115569,118200.0,118190.0,3.64031136]
[1753611325280,0.0115569,118200.0,118190.0,3.73080136]
[1753611325697,0.0115569,118200.0,118190.0,3.72980136]
[1753611325904,0.0115569,118200.0,118190.0,3.70249136]
[1753611326335,0.0115569,118200.0,118190.0,3.92627536]
[1753611326775,0.0115569,118200.0,118190.0,3.92727536]
[1753611327186,0.0115569,118200.0,118190.0,4.48969336]
[1753611327379,0.0115569,118200.0,118190.0,4.46224736]
[1753611328193,0.0115569,118200.0,118190.0,4.55917736]
[1753611328386,0.00309421,118200.0,118190.0,4.55917736]
[1753611328760,0.0004,118210.0,118200.0,4.54538757]
[1753611328963,0.00054567,118210.0,118200.0,4.29935887]
[1753611329764,0.00054567,118210.0,118200.0,4.44249387]
[1753611329949,0.00054567,118210.0,118200.0,4.39353987]
[1753611330870,0.00054567,118210.0,118200.0,4.42877687]
[1753611331074,0.00054567,118210.0,118200.0,0.80997187]
[1753611331291,0.00054567,118210.0,118200.0,4.42457187]
[1753611331712,0.00054567,118210.0,118200.0,0.80997187]
[1753611331916,0.00054567,118210.0,118200.0,4.45077587]
[1753611332298,0.00054567,118210.0,118200.0,4.42458087]
[1753611332724,0.00054567,118210.0,118200.0,4.47200787]
[1753611333349,0.00054567,118210.0,118200.0,4.44589887]
[1753611333997,0.00054567,118210.0,118200.0,4.47484187]
[1753611334261,0.0004,118230.0,118220.0,5.18027367]
[1753611334478,0.00044853,118230.0,118220.0,4.61140197]
[1753611334910,0.0004,118240.0,118230.0,3.66097119]
[1753611335095,0.0004,118240.0,118230.0,3.87604849]
[1753611335299,0.0004,118240.0,118230.0,3.87976149]
[1753611335949,0.0004,118240.0,118230.0,3.95882149]
[1753611336154,0.0004,118240.0,118230.0,3.91643749]
[1753611336568,0.0004,118240.0,118230.0,3.89154149]
[1753611336783,0.0004,118240.0,118230.0,3.45252749]
[1753611337205,0.0004,118240.0,118230.0,3.42688149]
[1753611338072,0.0004,118240.0,118230.0,3.92320949]
[1753611338265,0.0004,118240.0,118230.0,3.90595949]
[1753611338912,0.0004,118240.0,118230.0,4.07372449]
[1753611339130,0.0004,118240.0,118230.0,3.98910049]
[1753611339362,0.0004,118240.0,118230.0,0.80778249]
[1753611339580,0.0004,118240.0,118230.0,3.12897249]
[1753611339788,0.01344,118250.0,118240.0,2.38796874]
[1753611339991,0.01348853,118250.0,118240.0,2.80664604]
[1753611340211,0.00502863,118250.0,118240.0,2.90072506]
[1753611340418,0.00694,118260.0,118250.0,3.69451031]
[1753611340644,0.01690923,118270.0,118260.0,0.52603041]
[1753611340848,0.21777348,118280.0,118270.0,0.18655361]
[1753611340849,0.26049653,118280.0,118270.0,0.18655361]
[1753611341066,0.09338551,118280.0,118270.0,0.40019091]
[1753611341692,0.2624758,118280.0,118270.0,0.42504778]
[1753611342353,0.2624758,118280.0,118270.0,0.42604778]
[1753611342559,0.08493157,118280.0,118270.0,0.42604778]
[1753611342768,0.25402186,118280.0,118270.0,0.42604778]
[1753611343431,0.08291157,118280.0,118270.0,0.42604778]
[1753611343646,0.0829115,118280.0,118270.0,0.434503]
[1753611343853,0.09136601,118280.0,118270.0,0.42604778]
[1753611344108,0.2604563,118280.0,118270.0,0.42604778]
[1753611344314,0.2604563,118280.0,118270.0,0.42704778]
[1753611345747,0.0829115,118280.0,118270.0,0.435503]
[1753611345982,0.0829115,118280.0,118270.0,0.42704778]
[1753611346240,0.0278315,118280.0,118270.0,0.458333]
[1753611346444,0.02783093,118280.0,118270.0,0.46678808]
[1753611346667,0.00048854,118280.0,118270.0,0.88797351]
[1753611346902,0.00048854,118280.0,118270.0,0.93578317]
[1753611347367,0.00894248,118280.0,118270.0,0.93578317]
[1753611347624,0.00048854,118280.0,118270.0,0.93578317]
[1753611350025,0.00894241,118280.0,118270.0,0.93578317]
[1753611350377,0.00048854,118280.0,118270.0,0.93578317]
[1753611350641,0.00894248,118280.0,118270.0,0.93578317]
[1753611351331,0.01739663,118280.0,118270.0,0.93578332]
[1753611351555,0.24344764,118280.0,118270.0,0.59814319]
[1753611351779,0.24546764,118280.0,118270.0,0.59814319]
[1753611351969,0.24546764,118280.0,118270.0,0.24069417]
[1753611352847,0.24546764,118280.0,118270.0,0.44373417]
[1753611353298,0.24546764,118280.0,118270.0,0.44377417]
[1753611355285,0.24344764,118280.0,118270.0,0.44397417]
[1753611361544,0.25134587,118280.0,118270.0,0.44397417]
[1753611362114,0.25134587,118280.0,118270.0,0.46856417]
[1753611362721,0.22846587,118280.0,118270.0,0.46856417]
[1753611363138,0.25110587,118280.0,118270.0,0.46856417]
[1753611363665,0.25110587,118280.0,118270.0,0.44397417]
[1753611364763,0.25110587,118280.0,118270.0,0.31437417]
[1753611364999,0.25312587,118280.0,118270.0,0.31437417]
[1753611365442,0.25312587,118280.0,118270.0,0.44409417]
[1753611365661,0.25312587,118280.0,118270.0,0.44413417]
[1753611367186,0.25314064,118280.0,118270.0,0.44413417]
[1753611373038,0.25313725,118280.0,118270.0,0.44413417]
[1753611377567,0.25313725,118280.0,118270.0,0.43813417]
[1753611379095,0.25111725,118280.0,118270.0,0.43813417]
[1753611379318,0.24320764,118280.0,118270.0,0.43813417]
[1753611382478,0.24320764,118280.0,118270.0,0.46272417]
[1753611384408,0.22056764,118280.0,118270.0,0.46272417]
[1753611387514,0.22056764,118280.0,118270.0,0.46573417]
[1753611390253,0.22056764,118280.0,118270.0,0.46775417]
[1753611394951,0.22056764,118280.0,118270.0,0.35949687]
[1753611395188,0.24344764,118280.0,118270.0,0.35949687]
[1753611395423,0.27534464,118280.0,118270.0,0.35949687]
[1753611395616,0.27534464,118280.0,118270.0,0.15645687]
[1753611396802,0.27534464,118280.0,118270.0,0.02685687]
[1753611397032,0.27534464,118280.0,118270.0,0.15641687]
[1753611397491,0.27534464,118280.0,118270.0,0.13156]
[1753611397726,0.27534464,118280.0,118270.0,0.002]
[1753611397899,0.27534464,118280.0,118270.0,0.13156]
[1753611402288,0.27735464,118280.0,118270.0,0.13156]
[1753611402797,0.27534464,118280.0,118270.0,0.13156]
[1753611402996,0.27534464,118280.0,118270.0,0.002]
[1753611403228,0.27534464,118280.0,118270.0,0.13152]
[1753611403854,0.27534464,118280.0,118270.0,0.1563]
[1753611404271,0.27534464,118280.0,118270.0,0.15626]
[1753611405057,0.25246464,118280.0,118270.0,0.15626]
[1753611406311,0.25246464,118280.0,118270.0,0.13148]
[1753611406530,0.27534464,118280.0,118270.0,0.13148]
[1753611406762,0.27534464,118280.0,118270.0,0.15626]
[1753611406970,0.25246464,118280.0,118270.0,0.15626]
[1753611407334,0.27534464,118280.0,118270.0,0.15626]
[1753611407961,0.25246464,118280.0,118270.0,0.15626]
[1753611408599,0.27534464,118280.0,118270.0,0.15626]
[1753611409005,0.27534464,118280.0,118270.0,0.13148]
[1753611409638,0.25246464,118280.0,118270.0,0.15626]
[1753611411314,0.23586464,118280.0,118270.0,0.13148]
[1753611411530,0.23586464,118280.0,118270.0,0.15927]
[1753611411963,0.25236464,118280.0,118270.0,0.15927]
[1753611414603,0.22036464,118280.0,118270.0,0.16129]
[1753611415735,0.23586464,118280.0,118270.0,0.16129]
[1753611419404,0.30484194,118280.0,118270.0,0.15626]
[1753611419621,0.64484194,118280.0,118270.0,0.15626]
[1753611419813,0.59874464,118280.0,118270.0,0.13148]
[1753611420072,0.57586464,118280.0,118270.0,0.13148]
[1753611420285,0.57586464,118280.0,118270.0,0.15618]
[1753611420511,0.57586464,118280.0,118270.0,0.15938]
[1753611420696,0.57586464,118280.0,118270.0,0.15838]
[1753611421139,0.56036464,118280.0,118270.0,0.15838]
[1753611421829,0.56036464,118280.0,118270.0,0.16034]
[1753611438425,0.56036464,118280.0,118270.0,0.17674]
[1753611443062,0.64484194,118280.0,118270.0,0.17674]
[1753611443273,0.64484194,118280.0,118270.0,0.16034]
[1753611443693,0.56036464,118280.0,118270.0,0.16034]
[1753611445530,0.56036464,118280.0,118270.0,0.17564]
[1753611449916,0.56036464,118280.0,118270.0,0.16914]
[1753611453904,0.56036464,118280.0,118270.0,0.18424]
[1753611453905,0.55838464,118280.0,118270.0,0.18424]
[1753611457757,0.55188464,118280.0,118270.0,0.18424]
[1753611478467,0.52648764,118280.0,118270.0,0.18424]
[1753611483821,0.52844764,118280.0,118270.0,0.18424]
[1753611505207,0.52844764,118280.0,118270.0,0.16718]
[1753611509269,0.52844764,118280.0,118270.0,0.18308]
[1753611509471,0.52844764,118280.0,118270.0,0.1851]
[1753611513927,0.52648764,118280.0,118270.0,0.1851]
[1753611537964,0.50648764,118280.0,118270.0,0.1851]
[1753611539190,0.53188564,118280.0,118270.0,0.1851]
[1753611543591,0.53386564,118280.0,118270.0,0.1851]
[1753611555975,0.53390564,118280.0,118270.0,0.1851]
[1753611585016,0.53192564,118280.0,118270.0,0.1851]
[1753611589358,0.50652764,118280.0,118270.0,0.2695773]
[1753611592145,0.16652764,118280.0,118270.0,0.2695773]
[1753611602521,0.16652764,118280.0,118270.0,0.4726573]
[1753611631850,0.13871759,118280.0,118270.0,0.4726573]
[1753611636175,0.13871759,118280.0,118270.0,0.2695773]
[1753611636367,0.14069759,118280.0,118270.0,0.2779173]
[1753611641122,0.13871759,118280.0,118270.0,0.2779173]
[1753611658657,0.13871759,118280.0,118270.0,0.4809573]
[1753611662987,0.13871759,118280.0,118270.0,0.2779173]
[1753611663210,0.13871759,118280.0,118270.0,0.30282348]
[1753611663469,0.14069759,118280.0,118270.0,0.17150348]
[1753611663681,0.14069759,118280.0,118270.0,0.24310348]
[1753611663682,0.19759759,118280.0,118270.0,0.24310348]
[1753611665028,0.19759759,118280.0,118270.0,0.11038348]
[1753611665241,0.19759759,118280.0,118270.0,0.24306348]
[1753611665456,0.19759759,118280.0,118270.0,0.24302348]
[1753611667637,0.59759759,118280.0,118270.0,0.24302348]
[1753611668001,0.59557759,118280.0,118270.0,0.24302348]
[1753611669151,0.57987759,118280.0,118270.0,0.24302348]
[1753611673320,0.56357759,118280.0,118270.0,0.24302348]
[1753611674445,0.56357759,118280.0,118270.0,0.26729348]
[1753611675299,0.54069759,118280.0,118270.0,0.26729348]
[1753611679336,0.54069759,118280.0,118270.0,0.27043348]
[1753611680290,0.54069759,118280.0,118270.0,0.27239348]
[1753611684461,0.54069759,118280.0,118270.0,0.27239348]
[1753611693373,0.54069759,118280.0,118270.0,0.28779348]
[1753611701676,0.59658759,118280.0,118270.0,0.02590618]
[1753611701883,0.59658759,118280.0,118270.0,0.15730618]
[1753611705647,0.59457759,118280.0,118270.0,0.15730618]
[1753611706794,0.57937759,118280.0,118270.0,0.15730618]
[1753611707009,0.56357759,118280.0,118270.0,0.15730618]
[1753611707248,0.54069759,118280.0,118270.0,0.18045618]
[1753611714986,0.54069759,118280.0,118270.0,0.18369618]
[1753611722471,0.54069759,118280.0,118270.0,0.15879]
[1753611727119,0.54069759,118280.0,118270.0,0.18422856]
[1753611735162,0.54069759,118280.0,118270.0,0.18639856]
[1753611735371,0.54320759,118280.0,118270.0,0.20289856]
[1753611747990,0.54320759,118280.0,118270.0,0.21829856]
[1753611787362,0.54320759,118280.0,118270.0,0.19286]
[1753611791455,0.54320759,118280.0,118270.0,0.21877655]
[1753611796749,0.54122759,118280.0,118270.0,0.21877655]
[1753611803070,0.5496821,118280.0,118270.0,0.47235844]
[1753611803313,0.1496821,118280.0,118270.0,0.47235844]
[1753611803537,0.0110043,118280.0,118270.0,0.47235844]
[1753611803750,0.02791282,118280.0,118270.0,0.48926881]
[1753611803970,0.00255,118280.0,118270.0,0.49772375]
[1753611804192,0.01100394,118280.0,118270.0,0.50617855]
[1753611804415,0.01945802,118280.0,118270.0,0.50617855]
[1753611805054,0.01945802,118280.0,118270.0,0.50617862]
[1753611805687,0.02791224,118280.0,118270.0,0.49772375]
[1753611806499,0.02791224,118280.0,118270.0,0.50617876]
[1753611807064,0.02791224,118280.0,118270.0,0.49772382]
[1753611807317,0.02791224,118280.0,118270.0,0.50617876]
[1753611808287,0.01945802,118280.0,118270.0,0.51463363]
[1753611808755,0.02791217,118280.0,118270.0,0.51463363]
[1753611808972,0.02791217,118280.0,118270.0,0.49772382]
[1753611809110,0.02791217,118280.0,118270.0,0.50617876]
[1753611809955,0.03636647,118280.0,118270.0,0.49772382]
[1753611810162,0.02791217,118280.0,118270.0,0.49772382]
[1753611810475,0.03636647,118280.0,118270.0,0.49772389]
[1753611810887,0.02791217,118280.0,118270.0,0.49772389]
[1753611811111,0.02791217,118280.0,118270.0,0.50617883]
[1753611811335,0.01945802,118280.0,118270.0,0.5146337]
[1753611811557,0.01945802,118280.0,118270.0,0.50617883]
[1753611811767,0.01100394,118280.0,118270.0,0.5146337]
[1753611811936,0.01100394,118280.0,118270.0,0.5236275]
[1753611812160,0.00255,118280.0,118270.0,0.87208222]
[1753611813919,0.00255,118280.0,118270.0,0.87108222]
[1753611814190,0.00255,118280.0,118270.0,0.87308222]
[1753611815342,0.00255,118280.0,118270.0,0.92584222]
[1753611815552,0.00255,118280.0,118270.0,0.87508222]
[1753611816798,0.00255,118280.0,118270.0,1.54939422]
[1753611818070,0.01100387,118280.0,118270.0,1.54939422]
[1753611818307,0.00255,118280.0,118270.0,1.54939422]
[1753611827912,0.0004,118290.0,118280.0,0.53445296]
[1753611828113,0.00088537,118290.0,118280.0,0.80932026]
[1753611829825,0.02579595,118310.0,118300.0,0.21001478]
[1753611830030,0.02579595,118310.0,118300.0,0.43514509]
[1753611830247,0.0173438,118310.0,118300.0,0.47828411]
[1753611830477,0.0173438,118310.0,118300.0,0.4698311]
[1753611830478,0.03424839,118310.0,118300.0,0.4698311]
[1753611830688,0.02579602,118310.0,118300.0,0.47828404]
[1753611830908,0.02579595,118310.0,118300.0,0.48673691]
[1753611831144,0.02579595,118310.0,118300.0,0.47828404]
[1753611831356,0.03424824,118310.0,118300.0,0.47828404]
[1753611831585,0.03424824,118310.0,118300.0,0.47828411]
[1753611832012,0.03424824,118310.0,118300.0,0.48028411]
[1753611832235,0.03424824,118310.0,118300.0,0.4718311]
[1753611832450,0.04270061,118310.0,118300.0,0.4718311]
[1753611833165,0.04270061,118310.0,118300.0,0.4728311]
[1753611833386,0.03424824,118310.0,118300.0,0.47283103]
[1753611833598,0.03424824,118310.0,118300.0,0.4728311]
[1753611834056,0.03424824,118310.0,118300.0,0.48128411]
[1753611834271,0.03424824,118310.0,118300.0,0.68428411]
[1753611834467,0.03424824,118310.0,118300.0,0.6758311]
[1753611834878,0.03424824,118310.0,118300.0,0.68428411]
[1753611835397,0.03424824,118310.0,118300.0,0.6758311]
[1753611835621,0.03424824,118310.0,118300.0,0.68428411]
[1753611835958,0.02579595,118310.0,118300.0,0.69273705]
[1753611836170,0.03424824,118310.0,118300.0,0.68428411]
[1753611836728,0.03424824,118310.0,118300.0,0.6758311]
[1753611837378,0.03424824,118310.0,118300.0,0.68428411]
[1753611837837,0.03424824,118310.0,118300.0,0.6758311]
[1753611838021,0.03424824,118310.0,118300.0,0.66737802]
[1753611838263,0.20329623,118310.0,118300.0,0.66737802]
[1753611838479,0.19484422,118310.0,118300.0,0.66737802]
[1753611841859,0.21125207,118310.0,118300.0,0.3229773]
[1753611842090,0.23671978,118310.0,118300.0,0.4205173]
[1753611842479,0.23671978,118310.0,118300.0,0.2904773]
[1753611842930,0.23671978,118310.0,118300.0,0.4205173]
[1753611843389,0.23671978,118310.0,118300.0,0.2904773]
[1753611843604,0.23671978,118310.0,118300.0,0.4205173]
[1753611847650,0.63671978,118310.0,118300.0,0.4205173]
[1753611852891,0.63671978,118310.0,118300.0,0.44543209]
[1753611853692,0.63671978,118310.0,118300.0,0.44539209]
[1753611855853,0.63671978,118310.0,118300.0,0.31539209]
[1753611856052,0.63671978,118310.0,118300.0,0.44539209]
[1753611857455,0.63671978,118310.0,118300.0,0.36091479]
[1753611858268,0.63671978,118310.0,118300.0,0.15791479]
[1753611862159,0.17752964,118290.0,118280.0,0.22900369]
[1753611862363,0.17752964,118290.0,118280.0,0.47085756]
[1753611864301,0.17752964,118290.0,118280.0,0.49639756]
[1753611868158,0.17752964,118290.0,118280.0,0.51199756]
[1753611872501,0.20728964,118290.0,118280.0,0.25599714]
[1753611872708,0.20728964,118290.0,118280.0,0.38595714]
[1753611872709,0.23928964,118290.0,118280.0,0.38595714]
[1753611873515,0.23928964,118290.0,118280.0,0.25599714]
[1753611873651,0.23928964,118290.0,118280.0,0.38595714]
[1753611873856,0.23928964,118290.0,118280.0,0.25599714]
[1753611874055,0.23928964,118290.0,118280.0,0.38595714]
[1753611874703,0.23928964,118290.0,118280.0,0.38795714]
[1753611876071,0.22358964,118290.0,118280.0,0.38795714]
[1753611878509,0.62358964,118290.0,118280.0,0.38795714]
[1753611885142,0.62049964,118290.0,118280.0,0.38795714]
[1753611890390,0.62049964,118290.0,118280.0,0.41257714]
[1753611893673,0.62049964,118290.0,118280.0,0.38795714]
[1753611896646,0.62049964,118290.0,118280.0,0.24180387]
[1753611896802,0.62049964,118290.0,118280.0,0.26612387]
[1753611897035,0.60419964,118290.0,118280.0,0.26612387]
[1753611897646,0.61949964,118290.0,118280.0,0.24180387]
[1753611898232,0.60419964,118290.0,118280.0,0.26822387]
[1753611901030,0.62250964,118290.0,118280.0,0.24180387]
[1753611901240,0.63770964,118290.0,118280.0,0.24180387]
[1753611901705,0.71838677,118290.0,118280.0,0.15732657]
[1753611902373,0.63770964,118290.0,118280.0,0.15732657]
[1753611906703,0.63770964,118290.0,118280.0,0.13196]
[1753611907652,0.63770964,118290.0,118280.0,0.13096]
[1753611908470,0.63870964,118290.0,118280.0,0.13096]
[1753611908694,0.63870964,118290.0,118280.0,0.12996]
[1753611908905,0.63970964,118290.0,118280.0,0.12996]
[1753611916844,0.62450964,118290.0,118280.0,0.12996]
[1753611926710,0.17755967,118270.0,118260.0,0.00852637]
[1753611926931,0.17755967,118270.0,118260.0,0.25962267]
[1753611927151,0.20391967,118270.0,118260.0,0.17514537]
[1753611927381,0.20391967,118270.0,118260.0,0.15884537]
[1753611927592,0.60391967,118270.0,118260.0,0.15884537]
[1753611928483,0.60391967,118270.0,118260.0,0.17614537]
[1753611928961,0.60391967,118270.0,118260.0,0.17714537]
[1753611929206,0.60391967,118270.0,118260.0,0.20233084]
[1753611930419,0.60391967,118270.0,118260.0,0.17714537]
[1753611933957,0.60391967,118270.0,118260.0,0.20233463]
[1753611938962,0.57952967,118270.0,118260.0,0.21753463]
[1753611941802,0.60391967,118270.0,118260.0,0.19608463]
[1753611942466,0.60391967,118270.0,118260.0,0.19821463]
[1753611945738,1.14165997,118270.0,118260.0,1e-08]
[1753611945951,0.74165997,118270.0,118260.0,0.12980001]
[1753611946394,0.74165997,118270.0,118260.0,0.1298]
[1753611946604,0.186046,118250.0,118240.0,0.04169]
[1753611946810,0.586046,118250.0,118240.0,0.19773336]
[1753611947225,0.586046,118250.0,118240.0,0.18906854]
[1753611947710,0.586046,118250.0,118240.0,0.05926854]
[1753611947947,0.586046,118250.0,118240.0,0.18906854]
[1753611950011,0.186046,118250.0,118240.0,0.18906854]
[1753611950433,0.186086,118250.0,118240.0,0.18906854]
[1753611951543,0.187086,118250.0,118240.0,0.18906854]
[1753611952320,0.587086,118250.0,118240.0,0.18906854]
[1753611955567,0.187086,118250.0,118240.0,0.18906854]
[1753611955986,0.587086,118250.0,118240.0,0.18906854]
[1753611957010,0.610086,118250.0,118240.0,0.18906854]
[1753611958749,0.612146,118250.0,118240.0,0.18906854]
[1753611959056,0.212146,118250.0,118240.0,0.18906854]
[1753611961164,0.189146,118250.0,118240.0,0.18906854]
[1753611961366,0.187086,118250.0,118240.0,0.18906854]
[1753611961821,0.187086,118250.0,118240.0,0.27354584]
[1753611962047,0.01795281,118250.0,118240.0,0.51034375]
[1753611962280,0.01795281,118250.0,118240.0,0.51880105]
[1753611962507,0.00104,118250.0,118240.0,0.875715]
[1753611962729,0.00104,118250.0,118240.0,0.89316402]
[1753611962953,0.00104,118250.0,118240.0,2.97229202]
[1753611963887,4e-05,118250.0,118240.0,2.97429202]
[1753611964128,4e-05,118250.0,118240.0,2.97629202]
[1753611965038,4e-05,118250.0,118240.0,2.9086416]
[1753611965269,4e-05,118250.0,118240.0,2.4594916]
[1753611968744,4e-05,118250.0,118240.0,2.2898826]
[1753611968966,4e-05,118250.0,118240.0,2.1064036]
[1753611971572,4e-05,118250.0,118240.0,3.3565256]
[1753611972711,4e-05,118250.0,118240.0,2.9865256]
[1753611974902,4e-05,118250.0,118240.0,2.8104286]
[1753611975121,4e-05,118250.0,118240.0,1.3116766]
[1753611976531,4e-05,118250.0,118240.0,1.2977176]
[1753611976751,4e-05,118250.0,118240.0,1.2092916]
[1753611983505,4e-05,118250.0,118240.0,1.1679226]
[1753611985248,4e-05,118250.0,118240.0,1.3709626]
[1753611986875,4e-05,118250.0,118240.0,1.0325536]
[1753611987086,4e-05,118250.0,118240.0,2.0111956]
[1753611987507,4e-05,118250.0,118240.0,1.4162346]
[1753611987720,4e-05,118250.0,118240.0,1.3662346]
[1753611990240,4e-05,118250.0,118240.0,2.5035096]
[1753611990434,4e-05,118250.0,118240.0,2.2465096]
[1753611991565,4e-05,118250.0,118240.0,1.8693596]
[1753611991895,4e-05,118250.0,118240.0,1.8461846]
[1753611992270,4e-05,118250.0,118240.0,1.7854556]
[1753612000257,4e-05,118250.0,118240.0,1.6934886]
[1753612009085,4e-05,118250.0,118240.0,2.8071386]
[1753612009300,4e-05,118250.0,118240.0,2.3647446]
[1753612010383,0.19083846,118270.0,118260.0,0.16911889]
[1753612010590,0.19083846,118270.0,118260.0,0.38531017]
[1753612010798,0.19280846,118270.0,118260.0,0.38319619]
[1753612012028,0.19380846,118270.0,118260.0,0.38319619]
[1753612012444,0.21464846,118270.0,118260.0,0.38319619]
[1753612018084,0.19834846,118270.0,118260.0,0.38319619]
[1753612019157,0.19834846,118270.0,118260.0,0.40760619]
[1753612019360,0.17750846,118270.0,118260.0,0.40760619]
[1753612024577,0.17451846,118270.0,118260.0,0.40760619]
[1753612030918,0.15941846,118270.0,118260.0,0.40975619]
[1753612031101,0.15941846,118270.0,118260.0,0.41272619]
[1753612032526,0.15744846,118270.0,118260.0,0.41272619]
[1753612034946,0.15744846,118270.0,118260.0,0.42842619]
[1753612035148,0.15744846,118270.0,118260.0,0.41272619]
[1753612035883,0.15955846,118270.0,118260.0,0.41272619]
[1753612037474,0.00311,118270.0,118260.0,0.43809315]
[1753612037696,0.1954694,118270.0,118260.0,0.41272619]
[1753612037924,0.1954694,118270.0,118260.0,0.42782619]
[1753612044120,0.17855974,118270.0,118260.0,0.42782619]
[1753612044603,0.18066974,118270.0,118260.0,0.41272619]
[1753612044825,0.17221459,118270.0,118260.0,0.2436073]
[1753612045060,0.17221459,118270.0,118260.0,0.2406373]
[1753612045277,0.17221459,118270.0,118260.0,0.40975619]
[1753612046566,0.17221459,118270.0,118260.0,0.2406373]
[1753612046758,0.17221459,118270.0,118260.0,0.1110373]
[1753612046900,0.17221459,118270.0,118260.0,0.40963619]
[1753612048067,0.17221459,118270.0,118260.0,0.28015619]
[1753612048337,0.17221459,118270.0,118260.0,0.40963619]
[1753612048775,0.17221459,118270.0,118260.0,0.28015619]
[1753612048985,0.17221459,118270.0,118260.0,0.40959619]
[1753612049768,0.17221459,118270.0,118260.0,0.41283619]
[1753612049972,0.17221459,118270.0,118260.0,0.28339619]
[1753612050214,0.17221459,118270.0,118260.0,0.41283619]
[1753612053131,0.17221459,118270.0,118260.0,0.43884441]
[1753612067767,0.17221459,118270.0,118260.0,0.26972552]
[1753612067970,0.17221459,118270.0,118260.0,0.43884441]
[1753612068394,0.17221459,118270.0,118260.0,0.26972552]
[1753612068598,0.17221459,118270.0,118260.0,0.43884441]
[1753612072072,0.17221459,118270.0,118260.0,0.26972552]
[1753612072284,0.17221459,118270.0,118260.0,0.43884441]
[1753612078715,0.17221459,118270.0,118260.0,0.45384441]
[1753612078839,0.17221459,118270.0,118260.0,0.28472552]
[1753612084281,0.17221459,118270.0,118260.0,0.45384441]
[1753612084471,0.17010459,118270.0,118260.0,0.45384441]
[1753612087796,0.17010459,118270.0,118260.0,0.28472552]
[1753612088989,0.17010459,118270.0,118260.0,0.45384441]
[1753612089418,0.00945501,118270.0,118260.0,0.47075579]
[1753612089651,0.01791009,118270.0,118260.0,0.47760021]
[1753612089878,0.02636489,118270.0,118260.0,0.46914441]
[1753612090072,0.20392406,118270.0,118260.0,0.47760035]
[1753612090342,0.03481947,118270.0,118260.0,0.49451202]
[1753612090831,0.03481947,118270.0,118260.0,0.48605622]
[1753612091060,0.03481947,118270.0,118260.0,0.49451202]
[1753612091283,0.20392406,118270.0,118260.0,0.46914441]
[1753612091496,0.19546948,118270.0,118260.0,0.46914441]
[1753612092201,0.19546948,118270.0,118260.0,0.47760035]
[1753612092425,0.02636489,118270.0,118260.0,0.48605615]
[1753612092727,0.02636489,118270.0,118260.0,0.48605622]
[1753612092932,0.19546948,118270.0,118260.0,0.46914441]
[1753612096573,0.18701468,118270.0,118260.0,0.30002552]
[1753612096790,0.17855974,118270.0,118260.0,0.45384441]
[1753612100139,0.17844772,118270.0,118260.0,0.45384441]
[1753612101311,0.17844772,118270.0,118260.0,0.28472552]
[1753612101856,0.17844772,118270.0,118260.0,0.45384441]
[1753612102273,0.17844772,118270.0,118260.0,0.28472552]
[1753612104226,0.17844772,118270.0,118260.0,0.15528552]
[1753612104446,0.18055772,118270.0,118260.0,0.26956552]
[1753612105649,0.18055772,118270.0,118260.0,0.43868441]
[1753612111202,0.18055772,118270.0,118260.0,0.45428441]
[1753612112380,0.18055772,118270.0,118260.0,0.42827619]
[1753612113689,0.17844772,118270.0,118260.0,0.42827619]
[1753612115991,0.17844772,118270.0,118260.0,0.2591573]
[1753612116212,0.17844772,118270.0,118260.0,0.28498548]
[1753612117591,0.17844772,118270.0,118260.0,0.45410437]
[1753612122906,0.17844772,118270.0,118260.0,0.28498548]
[1753612124419,0.18056772,118270.0,118260.0,0.28498548]
[1753612124630,0.18056772,118270.0,118260.0,0.15570548]
[1753612124854,0.18353772,118270.0,118260.0,0.11030548]
[1753612125057,0.23617772,118270.0,118260.0,0.11030548]
[1753612125273,0.23617772,118270.0,118260.0,0.23954548]
[1753612125509,0.63617772,118270.0,118260.0,0.23954548]
[1753612129480,0.63617772,118270.0,118260.0,0.11030548]
[1753612129684,0.63617772,118270.0,118260.0,0.23954548]
[1753612130470,0.63617772,118270.0,118260.0,0.11030548]
[1753612130888,0.63617772,118270.0,118260.0,0.23954548]
[1753612132495,0.63617772,118270.0,118260.0,0.11030548]
[1753612132670,0.63617772,118270.0,118260.0,0.23954548]
[1753612133118,0.63617772,118270.0,118260.0,0.15506818]
[1753612133318,0.63617772,118270.0,118260.0,0.23954548]
[1753612134752,0.63617772,118270.0,118260.0,0.26274548]
[1753612136394,0.61533772,118270.0,118260.0,0.26274548]
[1753612137030,0.59883772,118270.0,118260.0,0.26274548]
[1753612147464,0.62423572,118270.0,118260.0,0.26274548]
[1753612150583,0.62126572,118270.0,118260.0,0.26274548]
[1753612159304,0.62104166,118270.0,118260.0,0.26274548]
[1753612159956,0.60574166,118270.0,118260.0,0.26274548]
[1753612168408,0.60891166,118270.0,118260.0,0.26274548]
[1753612168755,0.62411166,118270.0,118260.0,0.26274548]
[1753612170832,0.62411166,118270.0,118260.0,0.23954548]
[1753612171034,0.64495166,118270.0,118260.0,0.23954548]
[1753612171236,0.62411166,118270.0,118260.0,0.26407548]
[1753612176677,0.60891166,118270.0,118260.0,0.26407548]
[1753612177376,0.60891166,118270.0,118260.0,0.2382473]
[1753612179114,0.62501166,118270.0,118260.0,0.2382473]
[1753612180152,0.60891166,118270.0,118260.0,0.2382473]
[1753612181775,0.60574166,118270.0,118260.0,0.2382473]
[1753612184416,0.60574166,118270.0,118260.0,0.26379191]
[1753612199618,0.60574166,118270.0,118260.0,0.26587191]
[1753612203077,0.60574166,118270.0,118260.0,0.28197191]
[1753612210833,0.62164166,118270.0,118260.0,0.17931461]
[1753612211062,0.62478166,118270.0,118260.0,0.17931461]
[1753612214718,0.60888166,118270.0,118260.0,0.17931461]
[1753612219618,0.64542166,118270.0,118260.0,0.12924]
[1753612220735,0.64542166,118270.0,118260.0,0.12274]
[1753612221168,0.66092166,118270.0,118260.0,0.12274]
[1753612222032,0.66958901,118270.0,118260.0,0.12274]
[1753612222631,0.75345724,118270.0,118260.0,0.12274]
[1753612228143,1.09345724,118270.0,118260.0,0.12274]
[1753612228367,0.69345724,118270.0,118260.0,1e-08]